bitfinex-derivatives/quotes_ETHF0:USTF0_20250125
["timestamp","ask_amount","ask_price","bid_price","bid_amount"]
[1737797928105,4.35350369,3290.3,3290.2,0.73484868]
[1737797928316,5.34019759,3290.7,3290.2,1.84414627]
[1737797928606,0.48632,3290.5,3290.4,1.59561759]
[1737797928813,0.5075,3290.6,3290.4,1.47428734]
[1737797929019,3.2078,3290.7,3290.5,0.36498975]
[1737797929316,0.00455781,3290.9,3290.8,0.48627]
[1737797929517,0.00455781,3290.9,3290.8,1.96055734]
[1737797929713,0.00455781,3290.9,3290.8,42.76055734]
[1737797930213,0.00455781,3290.9,3290.8,42.76027782]
[1737797930416,0.49081781,3290.9,3290.8,42.76027782]
[1737797931109,0.49081781,3290.9,3290.8,42.27400782]
[1737797931316,0.49081781,3290.9,3290.8,1.47400782]
[1737797931616,0.49081781,3290.9,3290.8,1.96020782]
[1737797932914,0.00455781,3290.9,3290.8,1.96020782]
[1737797933118,0.00455781,3290.9,3290.8,2.97117782]
[1737797933820,0.00455781,3290.9,3290.8,3.5625433]
[1737797934418,0.00455781,3290.9,3290.8,3.56716567]
[1737797934618,0.00455781,3290.9,3290.8,2.97596685]
[1737797934819,0.49081781,3290.9,3290.8,2.97596685]
[1737797935923,0.00455781,3290.9,3290.8,2.97596685]
[1737797936616,0.49081781,3290.9,3290.8,2.97586185]
[1737797939527,0.49081781,3290.9,3290.8,1.38029426]
[1737797939824,1.6001154,3290.9,3290.8,0.36939426]
[1737797940029,0.4863,3290.6,3290.5,3.2078]
[1737797940228,0.4863,3290.6,3290.5,3.57711065]
[1737797940229,1.59559759,3290.6,3290.5,3.57711065]
[1737797941826,5.48807582,3290.6,3290.5,3.57711065]
[1737797942330,5.48807582,3290.6,3290.5,0.36931065]
[1737797942725,5.94677582,3290.6,3290.3,0.4762]
[1737797943025,0.48632,3290.5,3290.4,0.36932495]
[1737797943334,0.99242,3290.5,3290.4,0.36932495]
[1737797946828,0.48634,3290.3,3290.2,0.36985893]
[1737797947128,0.48634,3290.3,3290.2,0.73917568]
[1737797947949,0.48634,3290.3,3290.2,1.22553568]
[1737797949133,0.48634,3290.3,3290.2,1.2292109]
[1737797949428,0.5061,3290.5,3290.2,1.85214849]
[1737797949629,2.05429759,3290.6,3290.3,0.37299197]
[1737797949828,0.48633,3290.5,3290.4,0.85932197]
[1737797950028,2.08089759,3290.8,3290.4,42.28228956]
[1737797950029,1.60499759,3290.8,3290.4,42.28228956]
[1737797950229,0.48631,3290.6,3290.5,0.85931193]
[1737797951238,0.48629,3290.7,3290.6,0.48629]
[1737797951739,0.4863,3290.6,3290.5,0.48631]
[1737797951934,0.4863,3290.6,3290.5,0.85931256]
[1737797953938,0.4863,3290.6,3290.5,1.45617432]
[1737797955243,0.4863,3290.6,3290.5,1.45623872]
[1737797956740,0.4863,3290.6,3290.5,1.45642731]
[1737797958341,0.4863,3290.6,3290.5,0.97011731]
[1737797959140,0.4863,3290.6,3290.5,0.37312204]
[1737797959349,0.4863,3290.6,3290.5,0.97023387]
[1737797959741,0.4802,3290.7,3290.5,0.97030573]
[1737797959942,0.96649,3290.7,3290.6,0.37319453]
[1737797961246,0.96649,3290.7,3290.6,0.97033671]
[1737797961551,0.96649,3290.7,3290.6,0.37319453]
[1737797961850,0.48632,3290.5,3290.4,0.48632]
[1737797962144,0.48632,3290.5,3290.4,0.85953981]
[1737797962447,0.48632,3290.5,3290.4,0.37321981]
[1737797963942,0.4863,3290.6,3290.4,0.37330733]
[1737797964147,0.4863,3290.6,3290.5,0.37330733]
[1737797964945,0.00455781,3290.9,3290.5,0.37330733]
[1737797965148,0.00455781,3290.9,3290.8,1.59556759]
[1737797965340,0.49081781,3290.9,3290.8,1.96887492]
[1737797965543,0.49081781,3290.9,3290.8,43.36631492]
[1737797965744,0.49081781,3290.9,3290.8,41.77074733]
[1737797965950,0.49081781,3290.9,3290.8,41.17339607]
[1737797966150,0.49081781,3290.9,3290.8,0.37339607]
[1737797967446,0.49081781,3290.9,3290.8,0.88969607]
[1737797968953,0.49081781,3290.9,3290.8,1.49482941]
[1737797969259,0.49081781,3290.9,3290.8,0.97852941]
[1737797969847,0.49081781,3290.9,3290.8,0.37339607]
[1737797970354,4.46381239,3290.9,3290.8,0.37339607]
[1737797970853,4.02607877,3290.9,3290.3,1.0068]
[1737797971153,1.59562759,3290.4,3290.3,1.0068]
[1737797971353,1.59562759,3290.4,3290.3,1.99033734]
[1737797971649,1.59562759,3290.4,3290.3,0.98353734]
[1737797972055,5.50582577,3290.4,3290.3,0.98353734]
[1737797976251,5.50582577,3290.4,3290.3,0.98327063]
[1737797977156,5.50582577,3290.4,3290.3,0.37818101]
[1737797978160,5.01949577,3290.4,3290.3,0.38017447]
[1737797978352,0.48632,3290.5,3290.4,0.48632]
[1737797978552,1.62079759,3290.8,3290.4,2.09774828]
[1737797978862,0.4863,3290.7,3290.6,0.4863]
[1737797979159,0.4863,3290.7,3290.6,0.86647447]
[1737797979350,0.4863,3290.7,3290.6,1.36887447]
[1737797980565,0.52885781,3290.9,3290.8,0.48627]
[1737797980566,0.00455781,3290.9,3290.8,0.48627]
[1737797980766,0.00455781,3290.9,3290.8,0.86644447]
[1737797981063,0.49081781,3290.9,3290.8,0.86644447]
[1737797981964,0.49081781,3290.9,3290.8,0.8652609]
[1737797982354,0.49081781,3290.9,3290.8,0.86524856]
[1737797984165,0.49081781,3290.9,3290.8,0.37897856]
[1737797986369,0.49081781,3290.9,3290.8,0.37894612]
[1737797986569,0.49081781,3290.9,3290.8,0.98525839]
[1737797986967,0.49081781,3290.9,3290.8,0.37894612]
[1737797987269,0.49081781,3290.9,3290.8,1.47151277]
[1737797988370,0.49081781,3290.9,3290.8,0.37894612]
[1737797992475,0.00455781,3290.9,3290.6,0.5024]
[1737797992778,0.48627,3290.8,3290.7,0.37892987]
[1737797992982,0.48627,3290.8,3290.7,0.98521699]
[1737797994669,0.48627,3290.8,3290.7,0.37892987]
[1737797995177,0.48627,3290.8,3290.7,0.98521631]
[1737797996977,0.48627,3290.8,3290.7,0.98534144]
[1737797998675,0.48627,3290.8,3290.7,0.98544199]
[1737797999670,0.48633,3290.4,3290.2,0.00455781]
[1737797999980,1.48714,3290.3,3290.2,0.00455781]
[1737798000378,1.48714,3290.3,3290.2,0.38362579]
[1737798000584,1.00334,3290.3,3290.2,0.38362579]
[1737798002286,0.48634,3290.3,3290.2,0.38362579]
[1737798002484,0.945,3290.4,3290.2,0.38362579]
[1737798002784,1.43134,3290.4,3290.3,0.3768703]
[1737798002991,0.48634,3290.3,3290.2,0.00455781]
[1737798003181,1.01284,3290.3,3290.2,0.00455781]
[1737798003690,2.12228244,3290.3,3290.2,0.00455781]
[1737798006784,2.5034686,3290.3,3290.2,0.00455781]
[1737798007179,2.0171286,3290.3,3289.8,3.2078]
[1737798007385,1.10944244,3289.9,3289.5,2.60090244]
[1737798007585,0.48643,3289.7,3289.6,41.1766845]
[1737798007986,1.59587244,3289.7,3289.6,41.6631345]
[1737798008182,1.59587244,3289.7,3289.6,0.8631345]
[1737798008386,1.10944244,3289.7,3289.6,0.37668127]
[1737798008590,1.59587244,3289.7,3289.6,0.37668127]
[1737798008989,1.59587244,3289.7,3289.6,0.97922788]
[1737798012792,1.10944244,3289.7,3289.6,1.46567788]
[1737798013089,1.59587244,3289.7,3289.6,1.46567788]
[1737798013391,1.10944244,3289.9,3289.6,2.08867032]
[1737798013593,1.59585244,3289.9,3289.8,0.48641]
[1737798013892,1.59585244,3289.9,3289.8,0.86309127]
[1737798014497,1.59585244,3289.9,3289.8,0.86267404]
[1737798015292,1.59585244,3289.9,3289.8,0.37626404]
[1737798015787,1.59585244,3289.9,3289.5,42.29146]
[1737798015788,1.10944244,3289.9,3289.5,42.29146]
[1737798015991,0.48643,3289.7,3289.6,0.37627643]
[1737798016590,0.48643,3289.7,3289.6,0.37625375]
[1737798016792,0.48643,3289.7,3289.5,1.49146]
[1737798016991,0.48643,3289.7,3289.6,0.37625498]
[1737798017297,1.59587244,3289.7,3289.6,0.37625498]
[1737798017501,1.59587244,3289.7,3289.5,0.4891]
[1737798017502,2.67234244,3289.7,3289.5,0.4891]
[1737798017688,0.48645,3289.6,3289.5,0.4891]
[1737798017890,0.48645,3289.6,3289.5,0.86533869]
[1737798018593,0.48645,3289.6,3289.5,0.8653081]
[1737798021896,0.48645,3289.6,3289.5,0.3762081]
[1737798022096,0.48648,3289.4,3289.3,3.21235781]
[1737798022398,1.59592244,3289.4,3289.3,3.58860729]
[1737798022600,1.59592244,3289.4,3289.3,3.21235781]
[1737798022901,1.59592244,3289.4,3289.3,3.58859043]
[1737798024005,1.59592244,3289.4,3289.3,4.07508043]
[1737798025702,1.59592244,3289.4,3289.3,3.58859043]
[1737798025902,5.62703498,3289.4,3289.3,3.21235781]
[1737798026103,5.62703498,3289.4,3289.3,0.00455781]
[1737798027396,5.67554192,3289.4,3289.3,0.00455781]
[1737798030597,5.62703498,3289.4,3289.3,0.00455781]
[1737798034002,5.62703498,3289.4,3289.3,0.38102545]
[1737798034804,0.48648,3289.4,3289.3,0.38106143]
[1737798035710,1.59592244,3289.4,3289.3,0.85796143]
[1737798036810,1.59592244,3289.4,3289.3,0.8580693]
[1737798037107,1.59592244,3289.4,3289.3,0.48145781]
[1737798037700,1.59592244,3289.4,3289.3,0.96794781]
[1737798037899,1.59592244,3289.4,3289.3,0.48145781]
[1737798038101,3.2078,3289.5,3289.3,0.85809246]
[1737798038303,3.2078,3289.5,3289.4,2.62092244]
[1737798038506,1.62584244,3290.0,3289.4,6.32149004]
[1737798038709,1.43141,3289.9,3289.7,1.59586244]
[1737798038909,1.43141,3289.9,3289.8,0.8969212]
[1737798039110,1.43141,3289.9,3289.8,1.4252212]
[1737798042716,1.43141,3289.9,3289.8,0.3766212]
[1737798042907,0.48648,3289.4,3289.3,0.00455781]
[1737798043217,0.48648,3289.4,3289.3,0.38486579]
[1737798043410,4.39854791,3289.4,3289.3,0.00455781]
[1737798043605,5.40884791,3289.4,3289.3,0.00455781]
[1737798044210,5.40884791,3289.4,3289.3,0.38490071]
[1737798045612,5.40884791,3289.4,3289.3,0.00455781]
[1737798046618,5.45732114,3289.4,3289.3,0.00455781]
[1737798046813,5.40884791,3289.4,3289.3,0.00455781]
[1737798047008,5.40884791,3289.4,3289.3,0.38491028]
[1737798047209,5.40884791,3289.4,3289.3,0.00455781]
[1737798047408,5.40884791,3289.4,3289.3,0.38491296]
[1737798047822,5.40884791,3289.4,3289.3,0.00455781]
[1737798050119,8.61664791,3289.4,3289.3,0.00455781]
[1737798051917,8.66513769,3289.4,3289.3,0.00455781]
[1737798052521,8.17865769,3289.4,3288.8,1.0037]
[1737798052713,0.48654,3289.0,3288.9,0.38036995]
[1737798052926,1.43154,3289.0,3288.9,0.38036995]
[1737798053226,5.41877154,3289.0,3288.9,0.38037389]
[1737798055129,5.41877154,3289.0,3288.9,0.38037612]
[1737798055929,4.93223154,3289.0,3288.8,0.4766]
[1737798056126,0.48655,3288.9,3288.8,0.4766]
[1737798056328,0.48655,3288.9,3288.8,0.85697493]
[1737798057032,0.48655,3288.9,3288.8,1.46556466]
[1737798057223,0.48655,3288.9,3288.8,1.46554426]
[1737798057729,0.48655,3288.9,3288.8,42.26554426]
[1737798058128,0.945,3289.1,3288.8,42.26554426]
[1737798058332,0.00455781,3289.2,3289.1,0.48652]
[1737798058533,0.00455781,3289.2,3289.1,1.47546426]
[1737798058739,0.49106781,3289.2,3289.1,0.98894426]
[1737798059029,0.00455781,3289.2,3289.0,0.5203]
[1737798059233,0.48652,3289.1,3289.0,0.5203]
[1737798059430,0.00455781,3289.2,3289.0,1.50916932]
[1737798059630,0.49107781,3289.2,3289.1,0.98886932]
[1737798060329,0.49107781,3289.2,3289.1,0.38033435]
[1737798060330,4.45216243,3289.2,3289.1,0.38033435]
[1737798060526,0.48655,3288.9,3288.8,0.9849]
[1737798060731,0.48655,3288.9,3288.8,1.36525565]
[1737798061832,0.48655,3288.9,3288.8,1.97382971]
[1737798062033,0.48655,3288.9,3288.8,1.36525565]
[1737798062739,0.48655,3288.9,3288.8,0.85696402]
[1737798063043,2.86661191,3289.1,3288.5,0.5083]
[1737798063044,3.2078,3289.0,3288.5,0.5083]
[1737798063337,0.4866,3288.6,3288.5,1.0102]
[1737798063540,0.4866,3288.6,3288.5,1.99918532]
[1737798064835,0.4866,3288.6,3288.5,1.39057897]
[1737798065139,0.4866,3288.6,3288.5,0.88227897]
[1737798065541,0.4866,3288.6,3288.5,0.5019]
[1737798065737,0.4866,3288.6,3288.5,0.88232206]
[1737798066241,0.4866,3288.6,3288.5,0.88231602]
[1737798066436,0.4866,3288.6,3288.5,0.5019]
[1737798067341,3.39431191,3288.8,3288.3,3.2078]
[1737798067542,0.48663,3288.4,3288.3,3.7114]
[1737798067735,0.48663,3288.4,3288.3,4.09182522]
[1737798069643,0.48663,3288.4,3288.3,4.09181961]
[1737798071238,0.48663,3288.4,3288.3,4.57845961]
[1737798071437,0.48663,3288.4,3288.3,5.18710997]
[1737798071638,0.48663,3288.4,3288.3,4.57845961]
[1737798071843,0.48663,3288.4,3288.3,4.57845246]
[1737798072346,0.48663,3288.4,3288.3,5.1871177]
[1737798074147,0.48662,3288.5,3288.4,0.48663]
[1737798074349,0.48662,3288.5,3288.4,1.4757077]
[1737798075849,0.48662,3288.5,3288.4,0.48663]
[1737798076041,0.48662,3288.5,3288.4,1.4756691]
[1737798077041,0.48662,3288.5,3288.4,0.48663]
[1737798077347,0.48662,3288.5,3288.4,1.47566403]
[1737798077548,0.48662,3288.5,3288.4,1.09526633]
[1737798077744,0.48662,3288.5,3288.4,0.48663]
[1737798078447,0.48662,3288.5,3288.4,0.86702805]
[1737798078649,0.48662,3288.5,3288.4,1.47566493]
[1737798078949,0.48662,3288.5,3288.4,0.48663]
[1737798079149,0.48662,3288.5,3288.4,1.47566576]
[1737798080055,0.48662,3288.5,3288.4,1.47565978]
[1737798081952,0.4866,3288.6,3288.5,0.4866]
[1737798082253,0.4866,3288.6,3288.5,1.47563216]
[1737798082753,7.09315416,3288.7,3288.6,0.4866]
[1737798083049,3.88535416,3288.7,3288.6,5.19373216]
[1737798083459,3.88535416,3288.7,3288.6,45.99373216]
[1737798083654,3.88535416,3288.7,3288.6,47.10360021]
[1737798084957,3.07888073,3288.7,3288.6,52.10360021]
[1737798085254,3.07888073,3288.7,3288.6,52.5655946]
[1737798085452,3.07888073,3288.7,3288.6,52.94520375]
[1737798085653,3.07888073,3288.7,3288.6,54.17975438]
[1737798085960,3.07888073,3288.7,3288.6,53.80014523]
[1737798086255,3.07888073,3288.7,3288.6,48.33815084]
[1737798087763,3.07888073,3288.7,3288.6,45.99354896]
[1737798090261,3.07888073,3288.7,3288.6,45.99359594]
[1737798090854,3.07888073,3288.7,3288.6,48.33819782]
[1737798092460,3.07888073,3288.7,3288.6,48.33816639]
[1737798094574,3.07888073,3288.7,3288.6,48.33816215]
[1737798097655,0.48654,3289.0,3288.6,47.85156215]
[1737798097961,0.48652,3289.1,3289.0,0.48652]
[1737798098266,0.48652,3289.1,3289.0,1.47538027]
[1737798098659,0.48652,3289.1,3289.0,1.47537262]
[1737798100664,0.48652,3289.1,3289.0,1.47536316]
[1737798101361,0.49106781,3289.2,3289.1,0.48652]
[1737798101568,0.00455781,3289.2,3289.1,1.47536249]
[1737798101966,0.00455781,3289.2,3289.1,1.47535416]
[1737798102659,0.00455781,3289.2,3289.1,3.69432]
[1737798102867,0.00455781,3289.2,3289.1,5.14484419]
[1737798103069,0.00455781,3289.2,3289.1,45.94484419]
[1737798104669,0.00455781,3289.2,3289.1,46.32397735]
[1737798104870,0.00455781,3289.2,3289.1,45.94478997]
[1737798105063,0.00455781,3289.2,3289.1,46.32392567]
[1737798105968,0.00455781,3289.2,3289.1,45.94478997]
[1737798106165,0.00455781,3289.2,3289.1,45.48294137]
[1737798107064,0.00455781,3289.2,3289.1,45.48122569]
[1737798110473,0.49106781,3289.2,3289.1,4.68122569]
[1737798111978,0.00455781,3289.2,3289.1,4.68122569]
[1737798112779,0.49106781,3289.2,3289.1,4.07389911]
[1737798112977,0.49106781,3289.2,3289.1,3.58737911]
[1737798113178,0.49106781,3289.2,3289.1,3.2078]
[1737798116973,4.38155916,3289.2,3289.1,3.2078]
[1737798117281,0.48656,3288.9,3288.8,0.48656]
[1737798117477,0.48656,3288.9,3288.8,0.86688709]
[1737798117976,0.00455781,3289.2,3288.8,0.98885312]
[1737798118183,0.00455781,3289.2,3289.1,0.48652]
[1737798118386,0.00455781,3289.2,3289.1,0.86684709]
[1737798118585,0.00455781,3289.2,3289.1,1.47531633]
[1737798122990,0.00455781,3289.2,3289.1,4.68311633]
[1737798125187,0.00455781,3289.2,3289.1,4.68307372]
[1737798125589,0.00455781,3289.2,3289.1,4.68307008]
[1737798126388,0.00455781,3289.2,3289.1,5.14405408]
[1737798126987,0.00455781,3289.2,3289.1,4.68307008]
[1737798133794,0.00455781,3289.2,3289.1,4.68300601]
[1737798133987,0.00455781,3289.2,3289.1,5.1476277]
[1737798134591,0.00455781,3289.2,3289.1,5.52719993]
[1737798135188,0.00455781,3289.2,3289.1,2.31943793]
[1737798135494,0.00455781,3289.2,3289.1,5.52723793]
[1737798135994,0.00455781,3289.2,3289.1,5.52732558]
[1737798138099,0.00455781,3289.2,3289.1,5.52736099]
[1737798139089,0.00455781,3289.2,3289.1,3.69432]
[1737798139794,0.00455781,3289.2,3289.1,5.26867708]
[1737798139994,0.00455781,3289.2,3289.1,4.80398731]
[1737798140398,0.00455781,3289.2,3289.1,6.63698473]
[1737798141199,0.00455781,3289.2,3289.1,6.25736181]
[1737798141404,0.00455781,3289.2,3289.1,7.00074203]
[1737798143301,0.00455781,3289.2,3289.1,4.80398731]
[1737798143504,0.00455781,3289.2,3289.1,7.01038209]
[1737798143704,0.00455781,3289.2,3289.1,8.24449187]
[1737798143900,0.4949,3289.9,3289.8,0.48642]
[1737798144101,0.4949,3289.9,3289.8,3.81877412]
[1737798144605,0.4949,3289.9,3289.8,44.61877412]
[1737798145003,0.4949,3289.9,3289.8,41.78857703]
[1737798145200,0.9813,3289.9,3289.8,0.98857703]
[1737798145399,0.4949,3289.9,3289.8,0.98865091]
[1737798145604,0.9813,3289.9,3289.8,0.98865091]
[1737798146008,0.9813,3289.9,3289.8,0.38025035]
[1737798146206,0.9813,3289.9,3289.8,0.98865476]
[1737798146820,0.9813,3289.9,3289.8,0.38025035]
[1737798147117,0.9813,3289.9,3289.8,0.98865197]
[1737798147300,0.9813,3289.9,3289.8,0.19595197]
[1737798147612,0.4949,3289.9,3289.5,0.49100781]
[1737798147905,0.48644,3289.7,3289.5,0.49100781]
[1737798148304,1.0014,3289.8,3289.5,0.00455781]
[1737798148505,0.48643,3289.7,3289.6,0.48644]
[1737798149210,1.0014,3289.8,3289.5,0.00455781]
[1737798149516,0.48645,3289.6,3289.5,0.49101781]
[1737798149811,0.48644,3289.7,3289.6,0.48644]
[1737798150505,0.48644,3289.7,3289.5,0.49100781]
[1737798151417,0.48645,3289.6,3289.5,0.00455781]
[1737798155305,6.74683557,3289.6,3289.5,0.00455781]
[1737798157315,7.1284042,3289.6,3289.5,0.00455781]
[1737798158810,0.48657,3288.8,3288.7,0.48657]
[1737798159115,0.48657,3288.8,3288.7,0.60226661]
[1737798159315,0.48657,3288.8,3288.7,41.77859218]
[1737798159513,0.48657,3288.8,3288.7,42.26517218]
[1737798159711,0.48657,3288.8,3288.7,1.46517218]
[1737798160720,0.48657,3288.8,3288.7,0.97859218]
[1737798161017,0.48657,3288.8,3288.7,1.46517218]
[1737798161320,0.48657,3288.8,3288.7,0.86290557]
[1737798161821,1.5064,3289.1,3288.7,0.37613073]
[1737798162012,1.5064,3289.1,3288.8,0.3761328]
[1737798162205,1.5064,3289.1,3288.6,40.8]
[1737798162411,0.48658,3288.7,3288.6,40.8]
[1737798162713,0.945,3288.8,3288.3,0.84673497]
[1737798162918,0.48661,3288.5,3288.4,0.86267216]
[1737798163423,1.00691,3288.5,3288.4,0.86267216]
[1737798163919,1.00691,3288.5,3288.4,1.47377423]
[1737798165415,1.00691,3288.5,3288.4,0.8662947]
[1737798165611,1.00691,3288.5,3288.4,1.47341092]
[1737798166120,0.5203,3288.5,3288.4,1.47341092]
[1737798166318,0.5203,3288.5,3288.4,1.97531092]
[1737798167817,0.5203,3288.5,3288.4,1.3681947]
[1737798168125,0.5203,3288.5,3288.4,1.36781691]
[1737798169221,1.00691,3288.5,3288.4,1.36781691]
[1737798169920,1.00691,3288.5,3288.4,0.98852]
[1737798170120,1.00691,3288.5,3288.4,1.36772685]
[1737798171621,0.48661,3288.5,3288.4,1.36772685]
[1737798172528,4.31822964,3288.9,3288.4,0.88110685]
[1737798172819,0.48657,3288.8,3288.7,0.48657]
[1737798173017,4.31822964,3288.9,3288.7,0.37920685]
[1737798173217,4.80478964,3288.9,3288.8,41.66572761]
[1737798174323,4.80478964,3288.9,3288.8,41.66587685]
[1737798174720,4.80478964,3288.9,3288.8,0.37930685]
[1737798174921,4.80478964,3288.9,3288.5,1.62832964]
[1737798174922,0.48657,3288.8,3288.7,0.48658]
[1737798175121,0.99717,3288.8,3288.7,0.86591016]
[1737798176227,0.99717,3288.8,3288.7,0.86596362]
[1737798176620,0.99717,3288.8,3288.7,1.48981326]
[1737798178427,0.99717,3288.8,3288.7,0.37481857]
[1737798179030,0.5106,3288.8,3288.6,0.48659]
[1737798179225,0.48658,3288.7,3288.6,0.48659]
[1737798179425,0.98388,3288.7,3288.6,0.48659]
[1737798180031,0.98388,3288.7,3288.5,42.42832964]
[1737798180032,0.4866,3288.6,3288.5,1.62832964]
[1737798180227,0.4866,3288.6,3288.5,2.00333197]
[1737798180527,0.4866,3288.6,3288.5,2.00343757]
[1737798180729,0.4866,3288.6,3288.5,1.62832964]
[1737798181328,0.4866,3288.6,3288.5,1.99783693]
[1737798181925,0.4866,3288.6,3288.5,2.48444693]
[1737798182832,0.4866,3288.6,3288.5,1.99783693]
[1737798183526,0.48658,3288.8,3288.7,0.48657]
[1737798183826,0.48658,3288.8,3288.7,1.96650693]
[1737798184227,0.48654,3289.0,3288.9,0.48654]
[1737798184429,0.48654,3289.0,3288.9,1.96672353]
[1737798184727,0.48654,3289.0,3288.9,1.48018353]
[1737798185320,0.48654,3289.0,3288.9,2.08018443]
[1737798185526,0.48654,3289.0,3288.9,2.56673443]
[1737798186323,0.48654,3289.0,3288.9,1.59697964]
[1737798186528,0.48654,3289.0,3288.9,2.57208034]
[1737798187732,0.48654,3289.1,3289.0,0.48653]
[1737798187935,0.48654,3289.1,3289.0,3.05206034]
[1737798188920,3.7028,3289.3,3289.0,2.56553034]
[1737798189133,3.2078,3289.7,3289.2,1.11042964]
[1737798189426,3.69424,3289.7,3289.6,1.59687964]
[1737798189619,3.69424,3289.7,3289.6,43.37198034]
[1737798190129,1.9576,3290.1,3289.6,42.88553034]
[1737798190130,1.0126,3290.1,3289.6,42.88553034]
[1737798190431,1.0126,3290.1,3289.7,1.46211027]
[1737798190432,0.48642,3289.8,3289.7,1.46211027]
[1737798190728,0.48639,3290.0,3289.7,1.94853027]
[1737798190933,0.48642,3289.9,3289.8,0.95621027]
[1737798191132,0.48642,3289.9,3289.8,1.45291027]
[1737798192034,0.00455781,3290.2,3289.8,1.45291027]
[1737798192330,0.48639,3290.0,3289.9,0.85417318]
[1737798193534,0.00455781,3290.2,3289.9,0.85416318]
[1737798193735,0.48637,3290.1,3290.0,0.36777318]
[1737798193938,0.48637,3290.1,3290.0,0.85416318]
[1737798194134,0.00455781,3290.2,3290.1,0.48637]
[1737798194734,0.00455781,3290.2,3290.1,41.65329507]
[1737798195435,0.49091781,3290.2,3290.1,41.28637]
[1737798196434,0.97461781,3290.2,3290.1,41.28637]
[1737798200641,0.48825781,3290.2,3290.1,41.28637]
[1737798200831,0.97461781,3290.2,3290.1,41.28637]
[1737798201135,0.00455781,3290.2,3290.1,41.28637]
[1737798205039,0.51335781,3290.2,3290.1,41.28637]
[1737798205638,0.99971781,3290.2,3290.1,41.28637]
[1737798205833,0.51335781,3290.2,3290.0,1.77901367]
[1737798206038,0.48637,3290.1,3290.0,1.77901367]
[1737798207542,0.48639,3290.0,3289.9,46.83775882]
[1737798209441,0.48638,3290.1,3290.0,0.48638]
[1737798213437,1.03285781,3290.2,3289.9,46.35135882]
[1737798213638,1.03285781,3290.2,3290.1,1.59555048]
[1737798213639,1.51922781,3290.2,3290.1,1.59555048]
[1737798213839,0.00455781,3290.2,3290.1,1.59555048]
[1737798214243,0.00455781,3290.2,3290.1,2.10285048]
[1737798215148,0.00455781,3290.2,3290.1,2.47001348]
[1737798215343,0.5122,3290.9,3290.8,0.48627]
[1737798215649,3.2078,3291.3,3290.8,1.4764088]
[1737798215949,0.48623,3291.1,3291.0,0.48623]
[1737798216149,0.99842,3291.2,3291.0,0.48623]
[1737798216350,0.99842,3291.2,3291.1,41.90918048]
[1737798217044,0.99842,3291.2,3291.1,42.27640343]
[1737798217447,1.62138048,3291.2,3290.8,0.00455781]
[1737798217752,0.48626,3290.9,3290.8,0.00455781]
[1737798219447,7.5844365,3290.9,3290.8,0.00455781]
[1737798221649,7.14664529,3290.9,3290.1,3.69416]
[1737798221860,0.48636,3290.2,3290.1,3.69416]
[1737798222047,0.48636,3290.2,3290.1,4.65032789]
[1737798224151,0.48636,3290.2,3290.1,4.65045502]
[1737798224350,0.48636,3290.3,3290.2,0.48635]
[1737798224547,0.48636,3290.3,3290.2,1.44264502]
[1737798225249,0.48636,3290.3,3290.2,0.85415578]
[1737798225455,0.48636,3290.3,3290.2,0.36780578]
[1737798226957,0.48636,3290.2,3290.1,3.2078]
[1737798227159,0.48636,3290.2,3290.1,4.16412054]
[1737798227555,0.48636,3290.2,3290.1,3.57561559]
[1737798231962,0.48636,3290.2,3290.1,3.2078]
[1737798239562,0.48634,3290.4,3290.3,0.48634]
[1737798240269,0.48634,3290.4,3290.3,0.86352977]
[1737798240563,0.48634,3290.4,3290.3,1.46702949]
[1737798240763,0.48634,3290.4,3290.3,0.37718719]
[1737798241162,0.48634,3290.4,3290.3,0.86352719]
[1737798241364,0.48634,3290.4,3290.3,0.37718719]
[1737798242864,0.48634,3290.4,3290.3,1.46703339]
[1737798243363,0.48634,3290.4,3290.3,0.98069339]
[1737798243558,0.48634,3290.4,3290.3,0.37718719]
[1737798244873,0.48634,3290.4,3290.3,0.37719671]
[1737798244874,0.48633,3290.4,3290.3,0.37719671]
[1737798247167,0.48634,3290.3,3290.2,0.4887]
[1737798248272,0.48634,3290.3,3290.2,0.86889569]
[1737798251975,0.48634,3290.3,3290.2,1.96354401]
[1737798252168,0.48634,3290.3,3290.2,1.35525569]
[1737798252571,0.48634,3290.4,3290.3,0.48633]
[1737798252771,0.48634,3290.4,3290.3,0.86652569]
[1737798252972,0.48634,3290.4,3290.3,1.38567533]
[1737798253471,0.48634,3290.4,3290.3,0.89934533]
[1737798254873,0.38124065,3290.5,3290.3,0.89934533]
[1737798255080,0.38124065,3290.5,3290.4,2.58402144]
[1737798255376,0.38124065,3290.5,3290.4,3.42504686]
[1737798255778,3.69406,3290.9,3290.8,0.48627]
[1737798255981,3.69406,3290.9,3290.8,1.47471444]
[1737798256880,3.69406,3290.9,3290.8,1.98291444]
[1737798257178,3.69406,3290.9,3290.8,1.98279216]
[1737798258475,3.69406,3290.9,3290.8,1.49652216]
[1737798258680,3.69406,3290.9,3290.8,0.38012391]
[1737798259282,3.69406,3290.9,3290.8,0.38014977]
[1737798262885,3.69406,3290.9,3290.8,0.98834056]
[1737798263195,3.69406,3290.9,3290.8,0.38014977]
[1737798263489,0.48629,3290.7,3290.4,0.5082]
[1737798263686,0.48629,3290.7,3290.6,0.4863]
[1737798264193,0.48628,3290.8,3290.7,0.48628]
[1737798264389,0.48628,3290.8,3290.7,0.85943357]
[1737798264589,0.48628,3290.8,3290.7,1.45647928]
[1737798264891,0.48628,3290.8,3290.7,0.48628]
[1737798265285,0.48628,3290.8,3290.7,1.45648451]
[1737798265483,0.48628,3290.8,3290.7,0.85943558]
[1737798266887,0.48626,3290.9,3290.8,0.48627]
[1737798267189,0.48626,3290.9,3290.8,1.95348077]
[1737798269184,3.7025,3291.3,3290.8,1.46683659]
[1737798269487,0.48624,3291.1,3291.0,0.48623]
[1737798270594,0.48622,3291.2,3291.1,0.48622]
[1737798271394,3.69401,3291.3,3291.2,0.48621]
[1737798271790,0.48621,3291.2,3291.1,41.28622]
[1737798273396,3.2078,3291.3,3291.1,40.8]
[1737798273596,3.694,3291.3,3291.2,0.48621]
[1737798273789,3.694,3291.3,3291.1,40.8]
[1737798273994,0.48621,3291.2,3291.1,41.28621]
[1737798274695,0.48621,3291.2,3291.1,0.48621]
[1737798277598,0.48621,3291.2,3291.1,0.85889576]
[1737798278193,0.4862,3291.3,3291.2,0.4862]
[1737798278506,0.48295781,3291.4,3291.3,0.4862]
[1737798278798,0.00455781,3291.4,3291.3,5.14719281]
[1737798278991,0.00455781,3291.4,3291.3,5.02888576]